lending/lending_fUSD_20241005
["ID","MTS","AMOUNT","RATE_DAILY","PERIOD"]
[339899754,1728147097359,-500.0,0.00039589,30]
[339899755,1728147097367,-3092.09,0.00039589,30]
[339899756,1728147097376,-1117.04,0.00039589,30]
[339899757,1728147097386,-500.0,0.00039589,30]
[339899758,1728147097395,-500.0,0.00039589,30]
[339899759,1728147097404,-500.0,0.00039589,30]
[339899760,1728147097413,-1400.9,0.00039589,30]
[339899761,1728147097422,-500.0,0.00039589,30]
[339899762,1728147097432,-521.3,0.00039589,30]
[339899763,1728147097441,-957.32,0.00039589,30]
[339899764,1728147097450,-500.0,0.00039589,30]
[339899765,1728147097460,-532.54,0.00039589,30]
[339899766,1728147097469,-500.0,0.00039589,30]
[339899767,1728147097481,-500.0,0.00039589,30]
[339899768,1728147097490,-500.0,0.00039589,30]
[339899769,1728147097499,-500.0,0.00039589,30]
[339899770,1728147097508,-151.0,0.00039589,14]
[339899771,1728147097517,-613.27,0.00039589,30]
[339899772,1728147097526,-500.0,0.00039589,30]
[339899773,1728147097535,-500.0,0.00039589,30]
[339899774,1728147097544,-1461.62,0.00039589,30]
[339899775,1728147097553,-815.17,0.00039589,30]
[339899776,1728147097562,-551.78,0.00039589,30]
[339899777,1728147097571,-500.0,0.00039589,30]
[339899778,1728147097580,-500.0,0.00039589,30]
[339899779,1728147097589,-500.0,0.00039589,30]
[339899780,1728147097598,-833.62,0.00039589,30]
[339899781,1728147097607,-973.8,0.00039589,30]
[339899782,1728147097616,-500.0,0.00039589,30]
[339899783,1728147097625,-749.79,0.00039589,30]
[339899784,1728147097634,-500.0,0.00039589,30]
[339899785,1728147097643,-500.0,0.00039589,30]
[339899786,1728147097652,-500.0,0.00039589,30]
[339899787,1728147097661,-552.5,0.00039589,30]
[339899788,1728147097670,-500.0,0.00039589,30]
[339899789,1728147097679,-500.0,0.00039589,30]
[339899790,1728147097688,-500.0,0.00039589,30]
[339899791,1728147097697,-500.0,0.00039589,30]
[339899792,1728147097706,-500.0,0.00039589,30]
[339899793,1728147097715,-595.63,0.00039589,30]
[339899794,1728147097726,-500.0,0.00039589,30]
[339899795,1728147097735,-500.0,0.00039589,30]
[339899796,1728147097745,-895.17,0.00039589,30]
[339899797,1728147097754,-538.69,0.00039589,30]
[339899798,1728147097765,-716.85,0.00039589,30]
[339899799,1728147097775,-500.0,0.00039589,30]
[339899800,1728147097785,-500.0,0.00039589,30]
[339899801,1728147097794,-500.0,0.00039589,30]
[339899802,1728147097804,-500.0,0.00039589,30]
[339899803,1728147097813,-734.46,0.00039589,30]
[339899804,1728147097822,-500.0,0.00039589,30]
[339899805,1728147097832,-500.0,0.00039589,30]
[339899806,1728147097841,-500.0,0.00039589,30]
[339899807,1728147097850,-744.23,0.00039589,30]
[339899808,1728147097860,-500.0,0.00039589,30]
[339899809,1728147097869,-500.0,0.00039589,30]
[339899810,1728147097878,-1043.16,0.00039589,30]
[339899811,1728147097887,-544.13,0.00039589,30]
[339899812,1728147097896,-500.0,0.00039589,30]
[339899813,1728147097905,-526.24,0.00039589,30]
[339899814,1728147097915,-649.58,0.00039589,30]
[339899815,1728147097924,-837.39,0.00039589,30]
[339899816,1728147097933,-500.0,0.00039589,30]
[339899817,1728147097942,-500.0,0.00039589,30]
[339899818,1728147097951,-500.0,0.00039589,30]
[339899819,1728147097960,-500.0,0.00039589,30]
[339899820,1728147097969,-1194.16,0.00039589,30]
[339899821,1728147097980,-500.0,0.00039589,30]
[339899822,1728147097989,-500.0,0.00039589,30]
[339899823,1728147097998,-500.0,0.00039589,30]
[339899824,1728147098007,-1245.75,0.00039589,30]
[339899825,1728147098017,-612.42,0.00039589,30]
[339899826,1728147098026,-510.48,0.00039589,30]
[339899827,1728147098035,-500.0,0.00039589,30]
[339899828,1728147098044,-500.0,0.00039589,30]
[339899829,1728147098053,-896.41,0.00039589,30]
[339899830,1728147098062,-258.1337478,0.00039589,30]
[339899831,1728147098071,-912.71,0.00039589,30]
[339899832,1728147098080,-570.6,0.00039589,30]
[339899833,1728147098089,-500.0,0.00039589,30]
[339899834,1728147098098,-500.0,0.00039589,30]
[339899835,1728147098107,-935.17,0.00039589,30]
[339899836,1728147098116,-500.0,0.00039589,30]
[339899837,1728147098125,-1275.76,0.00039589,30]
[339899838,1728147098134,-500.0,0.00039589,30]
[339899839,1728147098143,-500.0,0.00039589,30]
[339899840,1728147098153,-500.18,0.00039589,30]
[339899841,1728147098162,-500.0,0.00039589,30]
[339899842,1728147098171,-500.0,0.00039589,30]
[339899843,1728147098181,-500.0,0.00039589,30]
[339899844,1728147098190,-712.54,0.00039589,30]
[339899845,1728147098199,-500.0,0.00039589,30]
[339899846,1728147098208,-713.19,0.00039589,30]
[339899847,1728147098218,-645.72,0.00039589,30]
[339899848,1728147098229,-1057.7,0.00039589,30]
[339899849,1728147098238,-749.26,0.00039589,30]
[339899850,1728147098248,-500.0,0.00039589,30]
[339899851,1728147098257,-500.0,0.00039589,30]
[339899852,1728147098266,-500.0,0.00039589,30]
[339899853,1728147098276,-500.0,0.00039589,30]
[339899854,1728147098286,-1037.04,0.00039589,30]
[339899855,1728147098295,-688.31,0.00039589,30]
[339899856,1728147098306,-500.0,0.00039589,30]
[339899857,1728147098315,-700.86,0.00039589,30]
[339899858,1728147098324,-446.74841975,0.00039589,30]
[339899859,1728147098336,-997.54,0.00039589,30]
[339899860,1728147098346,-534.2,0.00039589,30]
[339899861,1728147098357,-607.13,0.00039589,30]
[339899862,1728147098367,-500.0,0.00039589,30]
[339899863,1728147098376,-500.98,0.00039589,30]
[339899864,1728147098386,-500.0,0.00039589,30]
[339899865,1728147098397,-542.57,0.00039589,30]
[339899866,1728147098407,-1204.65,0.00039589,30]
[339899867,1728147098417,-500.0,0.00039589,30]
[339899868,1728147098427,-539.24,0.00039589,30]
[339899869,1728147098435,-500.0,0.00039589,30]
[339899870,1728147098445,-500.0,0.00039589,30]
[339899871,1728147098454,-1294.2,0.00039589,30]
[339899872,1728147098463,-6114.95,0.00039589,30]
[339899873,1728147098646,-500.0,0.00039589,30]
[339899874,1728147098655,-610.97,0.00039589,30]
[339899875,1728147098664,-1197.02,0.00039589,30]
[339899876,1728147098674,-500.0,0.00039589,30]
[339899877,1728147098683,-500.0,0.00039589,30]
[339899878,1728147098692,-500.0,0.00039589,30]
[339899879,1728147098702,-801.24,0.00039589,30]
[339899880,1728147098711,-533.72,0.00039589,30]
[339899881,1728147098721,-500.0,0.00039589,30]
[339899882,1728147098742,-500.0,0.00039589,30]
[339899883,1728147098751,-973.61,0.00039589,30]
[339899884,1728147098760,-743.21,0.00039589,30]
[339899885,1728147098769,-1102.84,0.00039589,30]
[339899886,1728147098779,-616.19,0.00039589,30]
[339899887,1728147098788,-500.0,0.00039589,30]
[339899888,1728147098797,-500.0,0.00039589,30]
[339899889,1728147098806,-500.0,0.00039589,30]
[339899890,1728147098815,-500.0,0.00039589,30]
[339899891,1728147098825,-1463.87,0.00039589,30]
[339899892,1728147098834,-500.0,0.00039589,30]
[339899893,1728147098844,-603.49,0.00039589,30]
[339899894,1728147098853,-500.0,0.00039589,30]
[339899895,1728147098862,-500.0,0.00039589,30]
[339899896,1728147098872,-235.97,0.00039589,14]
[339899897,1728147098881,-652.66,0.00039589,30]
[339899898,1728147098891,-500.0,0.00039589,30]
[339899899,1728147098901,-857.16,0.00039589,30]
[339899900,1728147098911,-443.431309,0.00039589,14]
[339899901,1728147098920,-500.0,0.00039589,30]
[339899902,1728147098930,-500.0,0.00039589,30]
[339899903,1728147098940,-500.0,0.00039589,30]
[339899904,1728147098949,-500.0,0.00039589,30]
[339899905,1728147098959,-1257.63,0.00039589,30]
[339899906,1728147098969,-500.0,0.00039589,30]
[339899907,1728147098980,-500.0,0.00039589,30]
[339899908,1728147098990,-500.0,0.00039589,30]
[339899909,1728147098999,-500.0,0.00039589,30]
[339899910,1728147099008,-500.0,0.00039589,30]
[339899911,1728147099018,-730.24,0.00039589,30]
[339899912,1728147099027,-443.431309,0.00039589,14]
[339899913,1728147099037,-1523.37,0.00039589,30]
[339899914,1728147099046,-500.0,0.00039589,30]
[339899915,1728147099055,-500.0,0.00039589,30]
[339899916,1728147099065,-847.59,0.00039589,30]
[339899917,1728147099074,-500.0,0.00039589,30]
[339899918,1728147099083,-500.0,0.00039589,30]
[339899919,1728147099093,-500.0,0.00039589,30]
[339899920,1728147099103,-500.0,0.00039589,30]
[339899921,1728147099112,-500.0,0.00039589,30]
[339899922,1728147099121,-500.0,0.00039589,30]
[339899923,1728147099130,-708.16,0.00039589,30]
[339899924,1728147099140,-500.0,0.00039589,30]
[339899925,1728147099149,-500.0,0.00039589,30]
[339899926,1728147099158,-500.0,0.00039589,30]
[339899927,1728147099167,-500.0,0.00039589,30]
[339899928,1728147099176,-500.0,0.00039589,30]
[339899929,1728147099186,-500.0,0.00039589,30]
[339899930,1728147099196,-1110.69,0.00039589,30]
[339899931,1728147099206,-734.55,0.00039589,30]
[339899932,1728147099215,-500.0,0.00039589,21]
[339899933,1728147099226,-500.0,0.00039589,30]
[339899934,1728147099236,-500.0,0.00039589,30]
[339899935,1728147099245,-500.0,0.00039589,30]
[339899936,1728147099254,-1207.12,0.00039589,30]
[339899937,1728147099264,-500.0,0.00039589,30]
[339899938,1728147099273,-621.54,0.00039589,30]
[339899939,1728147099282,-574.64108816,0.00039589,30]
[339899940,1728147099292,-1418.21,0.00039589,30]
[339899941,1728147099301,-500.0,0.00039589,30]
[339899942,1728147099311,-500.0,0.00039589,30]
[339899943,1728147099321,-1713.6,0.00039589,30]
[339899944,1728147099330,-500.0,0.00039589,30]
[339899945,1728147099343,-596.62,0.00039589,30]
[339899946,1728147099354,-500.0,0.00039589,120]
[339899947,1728147099364,-500.0,0.00039589,30]
[339899948,1728147099374,-1763.97,0.00039589,30]
[339899949,1728147099383,-500.0,0.00039589,30]
[339899950,1728147099393,-500.0,0.00039589,30]
[339899951,1728147099402,-500.0,0.00039589,30]
[339899952,1728147099412,-520.32,0.00039589,30]
[339899953,1728147099421,-500.0,0.00039589,30]
[339899954,1728147099432,-500.0,0.00039589,30]
[339899955,1728147099441,-1374.93,0.00039589,30]
[339899956,1728147099449,-500.0,0.00039589,30]
[339899957,1728147099458,-814.88,0.00039589,30]
[339899958,1728147099468,-828.2,0.00039589,30]
[339899959,1728147099477,-500.0,0.00039589,30]
[339899960,1728147099487,-500.0,0.00039589,30]
[339899961,1728147099496,-1238.46,0.00039589,30]
[339899962,1728147099505,-500.0,0.00039589,30]
[339899963,1728147099515,-500.0,0.00039589,30]
[339899964,1728147099525,-500.0,0.00039589,30]
[339899965,1728147099534,-500.0,0.00039589,30]
[339899966,1728147099544,-904.62,0.00039589,30]
[339899967,1728147099554,-500.0,0.00039589,30]
[339899968,1728147099564,-500.0,0.00039589,30]
[339899969,1728147099574,-500.0,0.00039589,30]
[339899970,1728147099584,-300.0,0.00039589,30]
[339899971,1728147099594,-1342.248124,0.00039589,14]
[339899972,1728147099603,-629.14,0.00039589,30]
[339899973,1728147099613,-1015.81,0.00039589,30]
[339899974,1728147099623,-500.0,0.00039589,30]
[339899975,1728147099633,-934.77,0.00039589,30]
[339899976,1728147099643,-500.0,0.00039589,7]
[339899977,1728147099652,-500.0,0.00039589,30]
[339899978,1728147099662,-500.0,0.00039589,30]
[339899979,1728147099672,-1120.82,0.00039589,30]
[339899980,1728147099682,-790.26,0.00039589,30]
[339899981,1728147099691,-803.58,0.00039589,30]
[339899982,1728147099701,-500.0,0.00039589,30]
[339899983,1728147099711,-1342.248124,0.00039589,14]
[339899984,1728147099720,-617.73,0.00039589,30]
[339899985,1728147099730,-500.0,0.00039589,30]
[339899986,1728147099739,-500.0,0.00039589,30]
[339899987,1728147099749,-500.0,0.00039589,30]
[339899988,1728147099758,-500.0,0.00039589,30]
[339899989,1728147099768,-816.66,0.00039589,30]
[339899990,1728147099777,-500.0,0.00039589,30]
[339899991,1728147099787,-500.0,0.00039589,2]
[339899992,1728147099798,-1440.54,0.00039589,30]
[339899993,1728147099808,-500.0,0.00039589,30]
[339899994,1728147099817,-1168.27,0.00039589,30]
[339899995,1728147099826,-259.8752326,0.00039589,30]
[339899996,1728147099835,-684.57,0.00039589,30]
[339899997,1728147099844,-500.0,0.00039589,30]
[339899998,1728147099854,-500.0,0.00039589,30]
[339899999,1728147099863,-500.0,0.00039589,30]
[339900000,1728147099873,-1163.33,0.00039589,30]
[339900001,1728147099883,-886.94,0.00039589,30]
[339900002,1728147099893,-790.06,0.00039589,30]
[339900003,1728147099904,-500.0,0.00039589,30]
[339900004,1728147099913,-500.0,0.00039589,30]
[339900005,1728147099924,-1783.85,0.00039589,30]
[339900006,1728147099933,-1108.4,0.00039589,30]
[339900007,1728147099942,-500.0,0.00039589,30]
[339900008,1728147099952,-252.27822,0.000396,120]
[339900009,1728147099961,-254.73,0.000396,30]
[339900010,1728147099971,-1126.93053,0.00039608,30]
[339900011,1728147099981,-152.0,0.00039676,7]
[339900012,1728147099990,-51770.8229316,0.00039703,2]
[339900013,1728147100010,-4271.6060197,0.00039703,2]
[339900014,1728147100027,-443.48370958,0.0003973,120]
[339900015,1728147100045,-443.48370958,0.0003973,120]
[339900016,1728147100066,-443.48370958,0.0003973,120]
[339900017,1728147100084,-443.48370958,0.0003973,120]
[339900018,1728147100100,-443.48370958,0.0003973,120]
[339900019,1728147100119,-443.48370958,0.0003973,120]
[339900020,1728147100133,-443.48370958,0.0003973,120]
[339900021,1728147100150,-443.48370958,0.0003973,120]
[339900022,1728147100169,-443.48370958,0.0003973,120]
[339900023,1728147100187,-443.48370958,0.0003973,120]
[339900024,1728147100200,-443.48370958,0.0003973,120]
[339900025,1728147100218,-1404.31028826,0.0003973,120]
[339900026,1728147100235,-1404.31028826,0.0003973,120]
[339900027,1728147100251,-1404.31028826,0.0003973,120]
[339900028,1728147100263,-1404.31028826,0.0003973,120]
[339900029,1728147100280,-1404.31028826,0.0003973,120]
[339900030,1728147100295,-1404.31028826,0.0003973,120]
[339900031,1728147100310,-1404.31028826,0.0003973,120]
[339900032,1728147100324,-1404.31028826,0.0003973,120]
[339900033,1728147100340,-1404.31028826,0.0003973,120]
[339900034,1728147100354,-1404.31028826,0.0003973,120]
[339900035,1728147100368,-1404.31028826,0.0003973,120]
[339900036,1728147100383,-411.0,0.00039762,90]
[339900037,1728147100398,-331.100519,0.00039798,120]
[339900038,1728147100413,-1126.93053,0.00039808,30]
[339900039,1728147100427,-1001.716,0.00039888,7]
[339900040,1728147100441,-1019.77674728,0.000399,2]
[339900041,1728147100456,-162.76849563,0.000399,13]
[339900042,1728147100471,-60493.0012649,0.00039946,2]
[339900043,1728147100487,-4473.2300601,0.00039972,2]
[339900044,1728147100502,-645.6463079,0.00039972,2]
[339900045,1728147100520,-151.0,0.00039972,14]
[339900046,1728147100535,-250.0,0.00039972,14]
[339900047,1728147100551,-165.2112,0.00039972,14]
[339900048,1728147100566,-250.0,0.00039972,14]
[339900049,1728147100581,-151.0,0.00039972,14]
[339900050,1728147100596,-443.431309,0.00039972,14]
[339900051,1728147100611,-443.431309,0.00039972,14]
[339900052,1728147100626,-1342.248124,0.00039972,14]
[339900053,1728147100641,-1342.248124,0.00039972,14]
[339900054,1728147100657,-151.0,0.00039973,14]
[339900055,1728147100673,-668.383726,0.00039973,14]
[339900056,1728147100688,-668.383726,0.00039973,14]
[339900057,1728147100704,-38466.4567271,0.00039973,2]
[339900058,1728147100719,-150.0,0.00039996,90]
[339900059,1728147100735,-150.0,0.00039996,90]
[339900060,1728147100751,-200.0,0.00039999,30]
[339900061,1728147100766,-50000.0,0.0004,40]
[339900062,1728147100780,-50000.0,0.0004,30]
[339900063,1728147100794,-477.12749073,0.0004,30]
[339900064,1728147100809,-688.73643087,0.0004,120]
[339900065,1728147100823,-400.16682537,0.0004,30]
[339900066,1728147100838,-326.11807349,0.0004,30]
[339900067,1728147100852,-748.51447718,0.0004,120]
[339900068,1728147100867,-256.28400048,0.0004,30]
[339900069,1728147100882,-266.36470188,0.0004,30]
[339900070,1728147100897,-279.38257334,0.0004,30]
[339900071,1728147100911,-1000.0,0.0004,20]
[339900072,1728147100925,-635.25001872,0.0004,120]
[339900073,1728147100939,-468.2055835,0.0004,120]
[339900074,1728147100954,-1051.17389633,0.0004,32]
[339900075,1728147100968,-319.29908207,0.0004,30]
[339900076,1728147100983,-494.39267653,0.0004,120]
[339900077,1728147100996,-1000.0,0.0004,120]
[339900078,1728147101011,-13811.00623741,0.0004,30]
[339900079,1728147101025,-200.0,0.0004,120]
[339900080,1728147101040,-194.0,0.0004,120]
[339900081,1728147101054,-115645.65654231,0.0004,30]
[339900082,1728147101068,-423.86,0.0004,30]
[339900083,1728147101082,-638.0,0.0004,35]
[339900084,1728147101096,-686.76429199,0.0004,120]
[339900085,1728147101110,-18622.3440379,0.0004,30]
[339900086,1728147101124,-668.66,0.0004,30]
[339900087,1728147101139,-1684.72,0.0004,30]
[339900088,1728147101153,-500.0,0.0004,30]
[339900089,1728147101167,-500.0,0.0004,30]
[339900090,1728147101181,-500.0,0.0004,30]
[339900091,1728147101194,-500.0,0.0004,30]
[339900092,1728147101208,-500.0,0.0004,30]
[339900093,1728147101221,-500.0,0.0004,30]
[339900094,1728147101237,-424.0,0.0004,30]
[339900095,1728147101250,-500.0,0.0004,30]
[339900096,1728147101264,-500.0,0.0004,30]
[339900097,1728147101278,-500.0,0.0004,30]
[339900098,1728147101293,-500.5672675,0.0004,30]
[339900099,1728147101306,-500.0,0.0004,30]
[339900100,1728147101319,-500.0,0.0004,30]
[339900101,1728147101333,-500.0,0.0004,30]
[339900102,1728147101348,-500.0,0.0004,30]
[339900103,1728147101362,-500.0,0.0004,30]
[339900104,1728147101375,-500.0,0.0004,30]
[339900105,1728147101389,-500.0,0.0004,30]
[339900106,1728147101403,-500.0,0.0004,30]
[339900107,1728147101417,-500.0,0.0004,30]
[339900108,1728147101431,-500.0,0.0004,30]
[339900109,1728147101445,-500.0,0.0004,30]
[339900110,1728147101458,-500.0,0.0004,30]
[339900111,1728147101472,-500.0,0.0004,30]
[339900112,1728147101489,-1982.15,0.0004,120]
[339900113,1728147101503,-500.0,0.0004,30]
[339900114,1728147101516,-500.0,0.0004,30]
[339900115,1728147101525,-500.0,0.0004,30]
[339900116,1728147101535,-556.93909591,0.0004,30]
[339900117,1728147101544,-500.0,0.0004,30]
[339900118,1728147101553,-500.0,0.0004,30]
[339900119,1728147101563,-150.0,0.0004,30]
[339900120,1728147101572,-500.0,0.0004,30]
[339900121,1728147101581,-500.0,0.0004,30]
[339900122,1728147101590,-1155.52,0.0004,30]
[339900123,1728147101600,-1004.11,0.0004,30]
[339900124,1728147101609,-869.62,0.0004,30]
[339900125,1728147101619,-306.81415265,0.0004,30]
[339900126,1728147101628,-500.0,0.0004,30]
[339900127,1728147101637,-500.0,0.0004,30]
[339900128,1728147101647,-500.0,0.0004,30]
[339900129,1728147101656,-577.41,0.0004,30]
[339900130,1728147101665,-499.34796783,0.0004,30]
[339900131,1728147101675,-1420.73,0.0004,30]
[339900132,1728147101685,-500.0,0.0004,30]
[339900133,1728147101694,-547.3,0.0004,30]
[339900134,1728147101704,-500.0,0.0004,30]
[339900135,1728147101713,-548.25,0.0004,30]
[339900136,1728147101723,-500.0,0.0004,30]
[339900137,1728147101739,-500.0,0.0004,30]
[339900138,1728147101748,-500.0,0.0004,30]
[339900139,1728147101758,-634.58,0.0004,30]
[339900140,1728147101767,-500.0,0.0004,30]
[339900141,1728147101776,-500.0,0.0004,30]
[339900142,1728147101785,-593.12,0.0004,30]
[339900143,1728147101794,-500.0,0.0004,30]
[339900144,1728147101804,-412.61065835,0.0004,30]
[339900145,1728147101814,-529.51,0.0004,30]
[339900146,1728147101823,-1227.07,0.0004,30]
[339900147,1728147101833,-500.0,0.0004,30]
[339900148,1728147101843,-518.44,0.0004,30]
[339900149,1728147101852,-500.0,0.0004,30]
[339900150,1728147101862,-907.64,0.0004,30]
[339900151,1728147101872,-505.93229874,0.0004,30]
[339900152,1728147101882,-500.0,0.0004,30]
[339900153,1728147101891,-500.0,0.0004,30]
[339900154,1728147101901,-500.0,0.0004,30]
[339900155,1728147101910,-500.0,0.0004,30]
[339900156,1728147102256,-500.0,0.0004,30]
[339900157,1728147102427,-500.0,0.0004,30]
[339900158,1728147102450,-500.0,0.0004,30]
[339900159,1728147102467,-500.0,0.0004,30]
[339900160,1728147102476,-500.0,0.0004,30]
[339900161,1728147102486,-500.0,0.0004,30]
[339900162,1728147102495,-500.0,0.0004,30]
[339900163,1728147102504,-597.48,0.0004,30]
[339900164,1728147102514,-500.0,0.0004,30]
[339900165,1728147102523,-500.0,0.0004,30]
[339900166,1728147102531,-500.0,0.0004,30]
[339900167,1728147102541,-500.0,0.0004,30]
[339900168,1728147102550,-780.76,0.0004,30]
[339900169,1728147102559,-500.0,0.0004,30]
[339900170,1728147102568,-500.0,0.0004,30]
[339900171,1728147102577,-1092.02,0.0004,30]
[339900172,1728147102585,-1147.66,0.0004,30]
[339900173,1728147102594,-446.14407644,0.0004,30]
[339900174,1728147102604,-500.0,0.0004,7]
[339900175,1728147102613,-500.0,0.0004,30]
[339900176,1728147102622,-500.0,0.0004,30]
[339900177,1728147102631,-500.0,0.0004,30]
[339900178,1728147102641,-500.0,0.0004,30]
[339900179,1728147102650,-500.0,0.0004,30]
[339900180,1728147102660,-500.0,0.0004,2]
[339900181,1728147102669,-500.0,0.0004,30]
[339900182,1728147102679,-500.0,0.0004,30]
[339900183,1728147102689,-500.0,0.0004,30]
[339900184,1728147102698,-500.0,0.0004,30]
[339900185,1728147102707,-605.99,0.0004,30]
[339900186,1728147102716,-500.0,0.0004,30]
[339900187,1728147102726,-500.0,0.0004,30]
[339900188,1728147102735,-500.0,0.0004,30]
[339900189,1728147102745,-500.0,0.0004,30]
[339900190,1728147102754,-500.0,0.0004,30]
[339900191,1728147102763,-500.0,0.0004,30]
[339900192,1728147102773,-959.8,0.0004,30]
[339900193,1728147102782,-500.0,0.0004,30]
[339900194,1728147102791,-597.47,0.0004,30]
[339900195,1728147102800,-500.0,0.0004,30]
[339900196,1728147102810,-500.0,0.0004,30]
[339900197,1728147102819,-500.0,0.0004,30]
[339900198,1728147102828,-500.0,0.0004,30]
[339900199,1728147102837,-200.0,0.0004,7]
[339900200,1728147102846,-500.0,0.0004,30]
[339900201,1728147102855,-500.0,0.0004,30]
[339900202,1728147102865,-500.0,0.0004,30]
[339900203,1728147102874,-500.0,0.0004,30]
[339900204,1728147102884,-500.0,0.0004,30]
[339900205,1728147102893,-500.0,0.0004,30]
[339900206,1728147102902,-500.0,0.0004,30]
[339900207,1728147102912,-1254.87,0.0004,30]
[339900208,1728147102921,-500.0,0.0004,30]
[339900209,1728147102930,-500.0,0.0004,30]
[339900210,1728147102939,-500.0,0.0004,30]
[339900211,1728147102948,-500.0,0.0004,30]
[339900212,1728147102957,-1340.11,0.0004,30]
[339900213,1728147102967,-500.0,0.0004,30]
[339900214,1728147102976,-500.0,0.0004,30]
[339900215,1728147102986,-500.0,0.0004,30]
[339900216,1728147102995,-1185.33,0.0004,30]
[339900217,1728147103004,-500.0,0.0004,30]
[339900218,1728147103013,-500.0,0.0004,30]
[339900219,1728147103023,-500.0,0.0004,30]
[339900220,1728147103032,-1060.42,0.0004,30]
[339900221,1728147103041,-1130.0,0.0004,30]
[339900222,1728147103050,-952.13,0.0004,30]
[339900223,1728147103059,-500.0,0.0004,30]
[339900224,1728147103069,-500.0,0.0004,30]
[339900225,1728147103079,-500.0,0.0004,30]
[339900226,1728147103088,-865.66,0.0004,30]
[339900227,1728147103097,-996.76,0.0004,30]
[339900228,1728147103106,-500.0,0.0004,30]
[339900229,1728147103116,-500.0,0.0004,30]
[339900230,1728147103126,-585.41,0.0004,30]
[339900231,1728147103135,-1128.68,0.0004,30]
[339900232,1728147103145,-498.18575077,0.0004,30]
[339900233,1728147103154,-500.0,0.0004,30]
[339900234,1728147103163,-999.01,0.0004,30]
[339900235,1728147103172,-1208.3,0.0004,30]
[339900236,1728147103181,-500.0,0.0004,30]
[339900237,1728147103190,-500.0,0.0004,30]
[339900238,1728147103199,-500.0,0.0004,30]
[339900239,1728147103208,-500.0,0.0004,30]
[339900240,1728147103217,-298.3898492,0.0004,30]
[339900241,1728147103226,-500.0,0.0004,30]
[339900242,1728147103236,-508.91,0.0004,30]
[339900243,1728147103245,-868.76,0.0004,30]
[339900244,1728147103254,-203.0996898,0.0004,30]
[339900245,1728147103263,-1096.8,0.0004,30]
[339900246,1728147103272,-500.0,0.0004,30]
[339900247,1728147103281,-613.51,0.0004,30]
[339900248,1728147103292,-930.7,0.0004,30]
[339900249,1728147103301,-500.0,0.0004,30]
[339900250,1728147103310,-1272.74,0.0004,30]
[339900251,1728147103319,-646.65,0.0004,30]
[339900252,1728147103329,-504.49,0.0004,30]
[339900253,1728147103341,-937.71,0.0004,30]